Cogmind - Beta 12 @@@ ROGUE MODE // 2023.07.13 @ 18:27:38 Player: Senator Honkstrong Result: Destroyed by D-53 Grenadier with Mini Grenade Launcher Performance ------------- Evolutions (0) 0 Regions Visited (2) 400 Robots Destroyed (32) 160 Value Destroyed (495) 495 Prototype IDs (2) 40 Alien Tech Used (0) 0 Bonus (0) 0 TOTAL SCORE: 1095 Bonus ------- None Cogmind --------- Core Integrity 0/250 Matter 192/300 Energy 74/100 System Corruption 0% Temperature Cool (0) Movement Core (350) Ox6 Location -10/Mines Parts ------- > --- POWER (1) -------- (None) > --- PROPULSION (2) --- (None) > --- UTILITY (2) ------ Large Storage Unit > --- WEAPON (2) ------- (None) > --- INVENTORY (15) --- Light Ion Engine Disposable Heat Sink Disposable Heat Sink High-capacity Matter Pod (200) Medium Armor Plating Medium Armor Plating Medium Armor Plating Beam Rifle Light Assault Rifle Light Assault Rifle Light Cannon Mining Laser Peak State ------------ > --- POWER ------------ Ion Engine > --- PROPULSION ------- Light Treads Light Treads > --- UTILITY ---------- Disposable Heat Sink Large Storage Unit > --- WEAPON ----------- Beam Rifle Light Cannon > --- INVENTORY -------- Light Ion Engine Light Treads Disposable Heat Sink High-capacity Matter Pod Medium Armor Plating Medium Armor Plating Medium Armor Plating Medium Armor Plating Beam Rifle Beam Rifle Light Assault Rifle Light Assault Rifle Grenade Launcher Mining Laser [Rating: 11] Favorites ----------- Power Ion Engine Engine Ion Engine Propulsion Light Treads Treads Light Treads Wheel Wheel Utility Targeting Computer Device Structural Scanner Storage Large Storage Unit Processor Targeting Computer Protection Medium Armor Plating Weapon Light Assault Rifle Energy Gun Medium Laser Ballistic Gun Light Assault Rifle Ballistic Cannon Light Cannon Launcher Grenade Launcher Build | -11 -10 -10 ------- Run | Jun Mat Min Slots Evolved . | . . . Power . | . . . Propulsion . | . . . Utility . | . . . Weapon . | . . . Parts Attached 24 | 5 10 9 Power 2 | 1 1 . Engine 2 | 1 1 . Core . | . . . Reactor . | . . . Propulsion 5 | 2 . 3 Treads 4 | 2 . 2 Leg . | . . . Wheel 1 | . . 1 Hover . | . . . Flight . | . . . Utility 6 | . 4 2 Device 2 | . 1 1 Storage 1 | . 1 . Processor 2 | . 2 . Hackware . | . . . Protection 1 | . . 1 Artifact . | . . . Weapon 11 | 2 5 4 Energy Gun 4 | 1 2 1 Energy Cannon . | . . . Ballistic Gun 3 | 1 1 1 Ballistic Cannon 1 | . 1 . Launcher 3 | . 1 2 Special Weapon . | . . . Impact Weapon . | . . . Slashing Weapon . | . . . Piercing Weapon . | . . . Special Melee Weapon . | . . . Unidentified Prototypes . | . . . Parts Lost 9 | . . 9 Power 1 | . . 1 Propulsion 4 | . . 4 Utility 1 | . . 1 Weapon 3 | . . 3 Highest Loss Streak 6 | . . 6 To Critical Strikes . | . . . Average Slot Usage (%) 93 | . 95 84 Engine 13 | . 14 9 Treads 27 | . 28 21 Storage 9 | . 9 14 Processor 12 | . 13 2 Protection 1 | . . 9 Energy Gun 14 | . 14 14 Ballistic Gun 11 | . 12 . Ballistic Cannon 1 | . . 8 Naked Turns . | . . . Heaviest Build 38 | 8 31 38 Greatest Support 40 | 40 40 40 Greatest Overweight (x) 7 | . . 7 Average Overweight (x) . | . . . Largest Inventory Capacity 15 | 5 15 15 Average Capacity 11 | 5 11 15 Most Carried 15 | 1 15 15 Average Carried 8 | . 9 13 Final Capacity 15 | 5 15 15 Final Carried 15 | 1 15 12 Class Distribution -------------------- 100% | Mutant Dominant Class ---------------- Mutant | -10/Materials Mutant | -10/Mines Resources | -11 -10 -10 ----------- Run | Jun Mat Min Matter Collected 716 | 278 383 55 Remotely . | . . . Salvage Created 1041 | 280 640 121 Parts 58 | 21 37 . Haulers Intercepted 1 | . 1 . Recyclers Shooed 1 | . 1 . Parts Field Recycled . | . . . Retrieved Matter . | . . . Parts Self-Destructed . | . . . Prevented . | . . . Kills | -11 -10 -10 ------- Run | Jun Mat Min Combat Hostiles Destroyed 24 | . 12 12 Guns 14 | . 11 3 Cannons 2 | . . 2 AOE 8 | . 1 7 Classes Destroyed 8 | 3 4 1 Worker 3 | 2 1 . Tunneler 8 | 8 . . Hauler 1 | . 1 . Recycler 3 | 1 2 . Watcher 3 | . 3 . Swarmer 6 | . 6 . Grunt 8 | . 6 2 Assembled 10 | . . 10 Best Kill Streak 10 | 4 5 10 Combat Bots Only 10 | . 5 10 Max Kills in Single Turn 2 | 2 1 2 Gunslinging . | . . . Exploded 1 | . 1 1 Melee . | . . . Uniques/NPCs Destroyed . | . . . Combat | -11 -10 -10 -------- Run | Jun Mat Min Damage Taken 1357 | . 390 967 Core 259 | . 46 213 Absorbed by Shields . | . . . Core Remaining (%) 100 | 100 . . Volleys Fired 110 | 33 53 24 Largest 2 | 2 2 2 Hottest 112 | 70 85 112 Shots Fired 214 | 66 104 44 Gun 194 | 66 101 27 Cannon 9 | . . 9 Launcher 11 | . 3 8 Special . | . . . Kinetic 94 | 33 50 11 Thermal 109 | 33 51 25 Explosive 11 | . 3 8 Electromagnetic . | . . . Robot Hit Streak 12 | 8 12 4 Robot Miss Streak 5 | 5 3 5 Penetration Max . | . . . Secondary Targets . | . . . Shots Hit Robots 131 | 38 65 28 Core Hits 71 | 19 32 20 Critical Kills . | . . . Critical Parts Destroyed 1 | 1 . . Critical Strikes 10 | 3 5 2 Burn 8 | 2 5 1 Destroy 1 | 1 . . Blast 1 | . . 1 Melee Attacks . | . . . Impact . | . . . Slashing . | . . . Piercing . | . . . Sneak Attacks . | . . . Combat Hostiles . | . . . Follow-up Attacks . | . . . Damage Inflicted 2157 | 400 840 917 Guns 1397 | 400 720 277 Cannons 111 | . . 111 Explosions 633 | . 107 526 Melee . | . . . Ramming 16 | . 13 3 Kinetic 511 | 172 214 125 Thermal 997 | 228 506 263 Explosive 633 | . 107 526 Electromagnetic . | . . . Impact . | . . . Slashing . | . . . Piercing . | . . . Highest Corruption . | . . . Average Corruption . | . . . Corruption Purged . | . . . Corruption Blocked . | . . . Overload Shots . | . . . Overflow Damage 73 | . 5 68 Projectiles . | . . . Explosions 73 | . 5 68 Melee . | . . . Knockbacks 2 | . . 2 Impact . | . . . Kinetic 2 | . . 2 Secondary . | . . . Self-Inflicted Damage 41 | . 19 22 Shots 3 | . 1 2 Rammed 6 | . 5 1 Targets Rammed 7 | . 6 1 Kicked . | . . . Crushed 1 | . 1 . Highest Temperature 321 | 120 278 321 Average Temperature 78 | 45 81 111 Received Heat Transfer 251 | . 150 101 Siege Activations . | . . . Robots Corrupted . | . . . Combat Hostiles . | . . . Parts Fried . | . . . Impact Corruptions . | . . . Robots Melted . | . . . Combat Hostiles . | . . . Parts Melted 6 | 1 5 . Heat Transferred 3293 | 814 1739 740 Parts Sabotaged . | . . . Parts Stolen . | . . . Parts Stripped . | . . . Power Chain Reactions . | . . . Missiles Intercepted . | . . . Alert | -11 -10 -10 ------- Run | Jun Mat Min Peak Influence 191 | 55 191 55 Initial 35 | . 35 1 Average 48 | 28 53 39 Maximum Alert Level . | . . . Low Security (%) 100 | 100 100 100 Level 1 . | . . . Level 2 . | . . . Level 3 . | . . . Level 4 . | . . . Level 5 . | . . . High Security . | . . . Max Security . | . . . Squads Dispatched 1 | . 1 . Investigation 1 | . 1 . Extermination . | . . . Reinforcement . | . . . Assault . | . . . Garrison . | . . . Intercept . | . . . Searches Triggered . | . . . Construction Impeded . | . . . Haulers Reinforced . | . . . Active Scanning Responses . | . . . Cargo Convoy Interrupts . | . . . Stealth | -11 -10 -10 --------- Run | Jun Mat Min Distress Signals 2 | . 2 . Communications Jammed . | . . . Distress Signals . | . . . Times Spotted 39 | . 19 20 Peak Tracking Total 7 | . 6 7 Tactical Retreats 1 | . . 1 Traps | -11 -10 -10 ------- Run | Jun Mat Min Traps Triggered 1 | . 1 . Indirectly . | . . . Trap Hack Attempts . | . . . Triggered . | . . . Disarmed . | . . . Reprogrammed . | . . . Reused . | . . . Traps Extracted . | . . . Installed . | . . . Triggered . | . . . Machines | -11 -10 -10 ---------- Run | Jun Mat Min Machines Disabled 1 | . 1 . Max in Single Turn 1 | . 1 . Machines Repaired . | . . . Machines Sabotaged . | . . . Overloaded Fab Kills . | . . . Hacking | -11 -10 -10 --------- Run | Jun Mat Min Machines Accessed 7 | . 7 . Terminals 5 | . 5 . Fabricators . | . . . Repair Stations . | . . . Recycling Units 2 | . 2 . Scanalyzers . | . . . Garrison Access . | . . . Total Hacks 22 | . 22 . Successful 13 | . 13 . Failed 8 | . 8 . Catastrophic 2 | . 2 . Database Lockouts 1 | . 1 . Manual 12 | . 12 . Terminals 19 | . 19 . Fabricators . | . . . Repair Stations . | . . . Recycling Units 3 | . 3 . Scanalyzers . | . . . Garrison Access . | . . . Terminal Hacks 9 | . 9 . Record 1 | . 1 . Robot Analysis 3 | . 3 . Prototype ID Bank 1 | . 1 . Emergency Access Points 1 | . 1 . Unreport Threat 1 | . 1 . Locate Traps 1 | . 1 . Hauler Manifests 1 | . 1 . Fabricator Hacks . | . . . Repair Station Hacks . | . . . Recycling Unit Hacks 2 | . 2 . Retrieve Components 2 | . 2 . Scanalyzer . | . . . Garrison Access Hacks . | . . . Unauthorized Hacks 2 | . 2 . Terminals 2 | . 2 . Botnet 2 | . 2 . Fabricators . | . . . Repair Stations . | . . . Recycling Units . | . . . Scanalyzers . | . . . Garrison Access . | . . . Data Cores Recovered . | . . . Used . | . . . Hacking Detections 6 | . 6 . Full Trace Events 1 | . 1 . Feedback Events . | . . . Feedback Blocked . | . . . Robot Schematics Acquired . | . . . Robots Built . | . . . Authchips . | . . . Time . | . . . Total Robot Build Rating . | . . . Part Schematics Acquired . | . . . Parts Built . | . . . Authchips . | . . . Time . | . . . Total Part Build Rating . | . . . Parts Repaired . | . . . Time . | . . . Parts Recycled . | . . . Recycled Matter . | . . . Retrieved Matter . | . . . Retrieved Components 10 | . 10 . Parts Scanalyzed . | . . . Part Schematics Acquired . | . . . Parts Damaged . | . . . Bothacking | -11 -10 -10 ------------ Run | Jun Mat Min Used RIF Installer . | . . . Robots Hacked . | . . . Non-combat . | . . . Combat . | . . . Robot Hacks Applied . | . . . Relay Couplers Released . | . . . Fabnet Peak Effective % . | . . . Robots Rewired . | . . . Allies Hacked . | . . . Hacks Repelled . | . . . Allies | -11 -10 -10 -------- Run | Jun Mat Min Total Allies . | . . . Largest Group . | . . . Highest-Rated Group . | . . . Highest-Rated Ally . | . . . Total Orders . | . . . Ally Attacks . | . . . Total Damage . | . . . Kills . | . . . Allies Corrupted . | . . . Allies Melted . | . . . Intel | -11 -10 -10 ------- Run | Jun Mat Min Robot Analysis Total 3 | . 3 . Derelict Logs Recovered 1 | . . 1 Drone Launches . | . . . Drone Recoveries . | . . . Exploration | -11 -10 -10 ------------- Run | Jun Mat Min Turns Passed 1879 | 284 1394 201 Spaces Moved 908 | 119 722 67 Core 7 | 6 . 1 Treads 899 | 113 722 64 Legs . | . . . Wheels 2 | . . 2 Hover . | . . . Flight . | . . . Fastest Speed 50 | 50 160 110 Average Speed 160 | 154 160 172 Slowest Speed 400 | 160 160 400 Overloaded Moves . | . . . Propulsion Burnouts . | . . . Robots Hopped . | . . . Cave-ins Triggered . | . . . Exploration Rate (%) 39 | 7 87 23 Regions Visited 2 Branch Regions 1 Pre-discovered Areas . | . . . Known Exits Taken . | . . . Unknown Exits Taken 2 | 1 1 . Scrap Searched . | . . . Spaces Dug . | . . . Terrain Destroyed 32 | . 14 18 Melee . | . . . Projectile . | . . . AOE 32 | . 14 18 Terrain Rammed . | . . . Walls Destroyed . | . . . Machines Disabled . | . . . Actions | -11 -10 -10 --------- Run | Jun Mat Min Total 1134 | 157 869 108 Wait 47 | . 41 6 Move 906 | 118 721 67 Hop . | . . . Pick Up 25 | 1 24 . Fast Attach 10 | 5 4 1 Attach 4 | . 1 3 Detach 1 | . . 1 Swap 10 | . 5 5 Drop 14 | . 14 . Fire 110 | 33 53 24 Melee . | . . . Ram . | . . . Kick . | . . . Crush 7 | . 6 1 Escape Stasis . | . . . Rewire . | . . . Trap . | . . . Miscellaneous . | . . . Route ------- -11/Junkyard -10/Materials (discovered 2 exits: [*Mat] / [*Min]) -10/Mines History --------- Turn | Location | Event 2 | -11/Junkyard | Met Revision 17 6 | -11/Junkyard | Discovered new exit (range 13) 285 | -11/Junkyard | Entered Materials 305 | -10/Materials | Build established: Mutant 535 | -10/Materials | Discovered new exit (range 9) 1125 | -10/Materials | Central database locked down 1198 | -10/Materials | Discovered new exit (range 16) 1679 | -10/Materials | Entered Mines 1760 | -10/Mines | Assembled infested the area 1765 | -10/Mines | Assisted by a Guerilla fighting off Assembled 1854 | -10/Mines | Lost 3 parts (1p2n) 1871 | -10/Mines | Core integrity fell below 50% 1873 | -10/Mines | Destroyed 10 combat bots 1879 | -10/Mines | Core integrity fell below 20% 1880 | -10/Mines | Destroyed by D-53 Grenadier with Mini Grenade Launcher Last Messages --------------- 01856_ as-92450 suffers critical hit (Burn). 01858_ U-05 Engineer lays Concrete. 01859_ C-30 ARC bursts open, deploying its payload. 01859_ D-53 Grenadier unfolds itself. 01859_ Med. Armor Plating destroyed. 01859_ U-05 Engineer lays Concrete. 01862_ as-92450 destroyed. 01862_ U-05 Engineer destroyed. 01866_ Beam Rifle destroyed. 01866_ as-88448 destroyed. 01869_ as-68368 destroyed. 01869_ as-60817 destroyed. 01869_ as-55279 destroyed. 01870_ Acquired Wheel. 01872_ K-01 Serf destroyed. 01873_ Wheel destroyed. 01875_ R-06 Scavenger destroyed. 01878_ Lgt. Treads destroyed. 01880_ The unstable cave ceiling collapses. 01880_ Beam Rifle destroyed. Map ----- +----------------------------------------------------+ | ?????????????????????????????????????????????????? | | ?????????????????????????????????????????????????? | | ?????????????????????????????????????????????????? | | ?????????????????????????????????????????????????? | | ?????????????????????????????????????????????????? | | ?????????????????????????????????????????????????? | | ?????????????????????????????????????????????????? | | ?????????????????????????? ??????????????????????? | | ??????????????????????? ?????????????????????? | | ?????????????????????### %????????????##???????? | | ???????????????????## #??#######?# ???????? | | ?????????????????? # ?## #"## ????????? | | ?????????????????? ## "# ?????????? | | ??????????????????%% # #?????????? | | ??????????????????## #??????????? | | ??????????????????? #??????????? | | ????????????????????# % =%##?????????? | | ????????????????????# = ###???????? | | ??????????????????????# ##??????? | | ???????????????????????# dd ##?????? | | ??????????????????????## * ##????? | | ?????????????????????## # # % ####?? | | ?????????????????????# #### ##? | | ?????????????????????## # ##??## " #? | | ?????????????????????# #????###% #? | | ?????????????????????#%% @ #??????# ## ##? | | ?????????????????????# #??????# #??###?? | | ?????????????????????# ######### #??????? | | ?????????????????????# # ##### #??????? | | ?????????????????????# ######???# #??????? | | ????????????????????? ??????????# ########??????? | | ????????????????????#???????????# #?????????????? | | ????????????????????????????????# #?????????????? | | ????????????????????????????????# #?????????????? | | ???????????????????????????????## #?????????????? | | ???????????????????????????????# ##????????????? | | ???????????????????????????????# ##???????????? | | ???????????????????????????????# ##??????????? | | ???????????????????????????????# ##?????????? | | ???????????????????????????????# ##????????? | | ???????????????????????????????# ## #######??? | | ???????????????????????????????# ?## # | | ???????????????????????????????# ??## ########### | | ???????????????????????????????# ???# #?????# % | | ??????????????????????????????? ???# #?????# | | ???????????????????????????????###???# ####??# | | ?????????????????????????????????????# % #??# | | ?????????????????????????????????????#### #### | | ????????????????????????????????????????# | | ????????????????????????????????????????###### | +----------------------------------------------------+ Best States ------------- Heat Dissipation 25 Coolant Potential 50 Energy Generation 10 Energy Capacity 250 Matter Stores 300 Matter Capacity 300 Sight Range 18 Terrain Scan Density 10 Armor Coverage 225 Evasion (%) 40 Targeting Accuracy 5 Recoil Reduction 2 Item Schematics ----------------- None Robot Schematics ------------------ None Fabricated ------------ Nothing Alien Tech Used ----------------- None Achievements -------------- None Challenges ------------ None Game ------ Seed GravitonStormReconstructor Manual? 0 Play Time 00:16:59 Cumulative 38.5 hours Start 2023.07.13 @ 18:13:31 End 2023.07.13 @ 18:27:38 Sessions 1 Manual Loads 0 Difficulty Rogue Special Mode None Game No. 28 Rogue 28 Adventurer 0 Explorer 0 Win Type - Total 0 Types 0/0/0/0/0/0/0/0/0 Lore% 27 Gallery% 30 Achievement% 30 Wizard Run 0 Options --------- ASCII 0 Keyboard 0 Movement Mouse Keybinds 0 Fullscreen 1 Font 18/SmallcapsGlow Map View 76x50 Tactical HUD 1 Map Filters NONE Filters NONE Steam X RUN: ad5284a8-41ed-4daf-800f-6476b2a0c19f